[Event "Late-Titled-Tuesday-Blitz-September-26-2023"]
[Site "Chess.com"]
[Date "2023.09.26"]
[Round "8"]
[White "ejalmedina"]
[Black "DeArron_Fox"]
[Result "0-1"]
[WhiteElo "2331"]
[BlackElo "2480"]
[TimeControl "180+1"]
[EndTime "15:25:43 PDT"]
[Termination "DeArron_Fox won by resignation"]

1. d4 {[%clk 0:03:00.9]} 1... d5 {[%clk 0:03:00]} 2. c4 {[%clk 0:03:00.4]} 2...
e6 {[%clk 0:02:59.6]} 3. Nc3 {[%clk 0:02:59.3]} 3... Nf6 {[%clk 0:02:59.8]} 4.
cxd5 {[%clk 0:02:59.3]} 4... exd5 {[%clk 0:03:00.7]} 5. Bg5 {[%clk 0:02:58.6]}
5... c6 {[%clk 0:02:59.7]} 6. Qc2 {[%clk 0:02:58.6]} 6... Be7 {[%clk 0:02:55.6]}
7. e3 {[%clk 0:02:58.8]} 7... Nbd7 {[%clk 0:02:54.4]} 8. Bd3 {[%clk 0:02:56.8]}
8... Nh5 {[%clk 0:02:54.8]} 9. Bxe7 {[%clk 0:02:52.6]} 9... Qxe7 {[%clk
0:02:55.7]} 10. Nf3 {[%clk 0:02:50.6]} 10... Nf4 {[%clk 0:02:54.7]} 11. O-O
{[%clk 0:02:47.6]} 11... Nxd3 {[%clk 0:02:54]} 12. Qxd3 {[%clk 0:02:48.5]} 12...
O-O {[%clk 0:02:52.6]} 13. Rab1 {[%clk 0:02:42.3]} 13... a5 {[%clk 0:02:52.2]}
14. b3 {[%clk 0:02:41.7]} 14... g6 {[%clk 0:02:44.9]} 15. Rbc1 {[%clk
0:02:31.5]} 15... Nf6 {[%clk 0:02:25]} 16. Na4 {[%clk 0:02:28.6]} 16... Bf5
{[%clk 0:02:22.6]} 17. Qe2 {[%clk 0:02:22.3]} 17... Nd7 {[%clk 0:02:21.9]} 18.
Nc5 {[%clk 0:02:17.7]} 18... Nxc5 {[%clk 0:02:14.7]} 19. Rxc5 {[%clk 0:02:16.8]}
19... a4 {[%clk 0:02:02.2]} 20. b4 {[%clk 0:02:12.6]} 20... b6 {[%clk
0:01:56.4]} 21. Rxc6 {[%clk 0:02:07.3]} 21... Qxb4 {[%clk 0:01:56.7]} 22. Rfc1
{[%clk 0:01:58.5]} 22... Rfc8 {[%clk 0:01:49.4]} 23. Ne5 {[%clk 0:01:38.4]}
23... Rxc6 {[%clk 0:01:39.6]} 24. Nxc6 {[%clk 0:01:34.2]} 24... Qa3 {[%clk
0:01:34.7]} 25. Qd2 {[%clk 0:01:31.2]} 25... Rc8 {[%clk 0:01:33.2]} 26. Rc3
{[%clk 0:01:23.1]} 26... Qd6 {[%clk 0:01:27.1]} 27. Qc1 {[%clk 0:01:19.2]} 27...
Kg7 {[%clk 0:01:26.7]} 28. a3 {[%clk 0:01:17]} 28... Bd3 {[%clk 0:00:40.2]} 29.
Nb4 {[%clk 0:00:58.2]} 29... Rxc3 {[%clk 0:00:14.2]} 30. Qxc3 {[%clk 0:00:59.1]}
30... Bc4 {[%clk 0:00:14.6]} 31. h3 {[%clk 0:00:50.8]} 31... b5 {[%clk
0:00:14.2]} 32. Qc2 {[%clk 0:00:36.1]} 32... Qe6 {[%clk 0:00:10.4]} 33. Qb1
{[%clk 0:00:32.5]} 33... h5 {[%clk 0:00:08.4]} 34. h4 {[%clk 0:00:30]} 34... Qg4
{[%clk 0:00:05.3]} 35. g3 {[%clk 0:00:30]} 35... Qf3 {[%clk 0:00:05.3]} 36. Qc2
{[%clk 0:00:23.4]} 36... f6 {[%clk 0:00:03.5]} 37. Na6 {[%clk 0:00:21.8]} 37...
g5 {[%clk 0:00:03.3]} 38. hxg5 {[%clk 0:00:21]} 38... fxg5 {[%clk 0:00:04.2]}
39. Nc7 {[%clk 0:00:19.5]} 39... h4 {[%clk 0:00:04.1]} 40. Ne6+ {[%clk
0:00:17.2]} 40... Kf6 {[%clk 0:00:04.6]} 41. gxh4 {[%clk 0:00:09.5]} 41... gxh4
{[%clk 0:00:05.5]} 42. Nf4 {[%clk 0:00:09]} 42... Qe4 {[%clk 0:00:02.7]} 43.
Qxe4 {[%clk 0:00:08.6]} 43... dxe4 {[%clk 0:00:03.6]} 44. Kh2 {[%clk 0:00:08.3]}
44... b4 {[%clk 0:00:03.3]} 45. axb4 {[%clk 0:00:08.8]} 45... a3 {[%clk
0:00:03.7]} 46. d5 {[%clk 0:00:06.8]} 46... a2 {[%clk 0:00:03.2]} 47. d6 {[%clk
0:00:07.1]} 47... a1=Q {[%clk 0:00:03.3]} 48. d7 {[%clk 0:00:07.4]} 48... Ke7
{[%clk 0:00:04]} 49. Ng6+ {[%clk 0:00:05.3]} 49... Kxd7 {[%clk 0:00:03.7]} 50.
Nxh4 {[%clk 0:00:06.2]} 50... Qf6 {[%clk 0:00:03.6]} 51. Kg3 {[%clk 0:00:07.1]}
51... Qg5+ {[%clk 0:00:03.5]} 52. Kh3 {[%clk 0:00:07.4]} 52... Be6+ {[%clk
0:00:04.1]} 0-1

[Event "Late-Titled-Tuesday-Blitz-September-26-2023"]
[Site "Chess.com"]
[Date "2023.09.26"]
[Round "8"]
[White "jamengrand"]
[Black "Slovak_fighter2000"]
[Result "0-1"]
[WhiteElo "2273"]
[BlackElo "2470"]
[TimeControl "180+1"]
[EndTime "15:25:44 PDT"]
[Termination "Slovak_fighter2000 won on time"]

1. e4 {[%clk 0:03:00.9]} 1... c5 {[%clk 0:02:50.7]} 2. Be2 {[%clk 0:03:00.8]}
2... b6 {[%clk 0:02:48.1]} 3. d3 {[%clk 0:03:00.2]} 3... Bb7 {[%clk 0:02:47.9]}
4. f4 {[%clk 0:03:00.2]} 4... e6 {[%clk 0:02:44.6]} 5. Nf3 {[%clk 0:03:00.2]}
5... Nf6 {[%clk 0:02:44.5]} 6. O-O {[%clk 0:02:59.6]} 6... d5 {[%clk 0:02:45.1]}
7. e5 {[%clk 0:02:58.8]} 7... Nfd7 {[%clk 0:02:45.7]} 8. c3 {[%clk 0:02:59.2]}
8... Nc6 {[%clk 0:02:45.7]} 9. d4 {[%clk 0:02:58.2]} 9... Be7 {[%clk 0:02:46.3]}
10. a3 {[%clk 0:02:58]} 10... O-O {[%clk 0:02:43.7]} 11. b4 {[%clk 0:02:56.4]}
11... a5 {[%clk 0:02:42.2]} 12. b5 {[%clk 0:02:55.6]} 12... Ncb8 {[%clk
0:02:38.4]} 13. Bd3 {[%clk 0:02:53.7]} 13... f5 {[%clk 0:02:32.6]} 14. Kh1
{[%clk 0:02:51.5]} 14... Qe8 {[%clk 0:02:24.5]} 15. Rg1 {[%clk 0:02:50.4]} 15...
Qh5 {[%clk 0:02:23.1]} 16. Ra2 {[%clk 0:02:42.9]} 16... Kh8 {[%clk 0:02:15.6]}
17. Rf2 {[%clk 0:02:07.9]} 17... Rg8 {[%clk 0:02:01.3]} 18. Ng5 {[%clk
0:02:02.3]} 18... Qg6 {[%clk 0:01:52.7]} 19. g4 {[%clk 0:02:02.1]} 19... Nf8
{[%clk 0:01:19.4]} 20. gxf5 {[%clk 0:01:30.7]} 20... exf5 {[%clk 0:01:20.3]} 21.
Rfg2 {[%clk 0:01:30.9]} 21... Bc8 {[%clk 0:01:10.5]} 22. Qf3 {[%clk 0:01:21.5]}
22... Bxg5 {[%clk 0:01:00.6]} 23. Rxg5 {[%clk 0:01:20.5]} 23... Qf7 {[%clk
0:00:59.6]} 24. Qh3 {[%clk 0:01:13.1]} 24... g6 {[%clk 0:00:54.7]} 25. Qg2
{[%clk 0:00:52.1]} 25... Be6 {[%clk 0:00:45.8]} 26. h4 {[%clk 0:00:51.9]} 26...
Nbd7 {[%clk 0:00:35.3]} 27. h5 {[%clk 0:00:48.2]} 27... gxh5 {[%clk 0:00:35.1]}
28. Qh3 {[%clk 0:00:38.3]} 28... Rxg5 {[%clk 0:00:32.6]} 29. Rxg5 {[%clk
0:00:38.6]} 29... Ng6 {[%clk 0:00:23.8]} 30. Qxh5 {[%clk 0:00:32.6]} 30... Rf8
{[%clk 0:00:17.3]} 31. Be3 {[%clk 0:00:31.8]} 31... c4 {[%clk 0:00:13.6]} 32.
Bc2 {[%clk 0:00:29.2]} 32... Ne7 {[%clk 0:00:14.2]} 33. Qh4 {[%clk 0:00:26]}
33... Rg8 {[%clk 0:00:14.2]} 34. Nd2 {[%clk 0:00:25.6]} 34... Rxg5 {[%clk
0:00:12.9]} 35. fxg5 {[%clk 0:00:25.6]} 35... Nf8 {[%clk 0:00:12.6]} 36. Nf3
{[%clk 0:00:22.6]} 36... Nfg6 {[%clk 0:00:12.4]} 37. Qh6 {[%clk 0:00:21.6]}
37... f4 {[%clk 0:00:12.5]} 38. Bd2 {[%clk 0:00:15.7]} 38... Bf5 {[%clk
0:00:12.4]} 39. Bd1 {[%clk 0:00:11.5]} 39... Be4 {[%clk 0:00:10.8]} 40. Kg1
{[%clk 0:00:11.5]} 40... Nf5 {[%clk 0:00:10.4]} 41. Qh3 {[%clk 0:00:10.5]} 41...
Qe7 {[%clk 0:00:08.8]} 42. Qg4 {[%clk 0:00:09.3]} 42... Qxa3 {[%clk 0:00:07.8]}
43. Bxf4 {[%clk 0:00:05.6]} 43... Qa1 {[%clk 0:00:07.2]} 44. Ne1 {[%clk
0:00:04.8]} 44... Qxc3 {[%clk 0:00:06.5]} 45. e6 {[%clk 0:00:04.5]} 45... Qxd4+
{[%clk 0:00:05.9]} 46. Kh2 {[%clk 0:00:04.4]} 46... Bd3 {[%clk 0:00:05]} 47.
Nxd3 {[%clk 0:00:03.8]} 47... Qxd3 {[%clk 0:00:04.2]} 48. e7 {[%clk 0:00:03.7]}
48... Nfxe7 {[%clk 0:00:03.6]} 49. Qe6 {[%clk 0:00:03.3]} 49... Qe4 {[%clk
0:00:02.7]} 50. Qf6+ {[%clk 0:00:02]} 50... Kg8 {[%clk 0:00:02.6]} 0-1

[Event "Late-Titled-Tuesday-Blitz-September-26-2023"]
[Site "Chess.com"]
[Date "2023.09.26"]
[Round "8"]
[White "YouShallNotPass001"]
[Black "YEIKO2017"]
[Result "1-0"]
[WhiteElo "2363"]
[BlackElo "2465"]
[TimeControl "180+1"]
[EndTime "15:25:46 PDT"]
[Termination "YouShallNotPass001 won on time"]

1. Nf3 {[%clk 0:03:00.9]} 1... c5 {[%clk 0:02:59.4]} 2. e3 {[%clk 0:03:01.8]}
2... g6 {[%clk 0:02:59.5]} 3. d4 {[%clk 0:03:01.6]} 3... Bg7 {[%clk 0:03:00.1]}
4. a3 {[%clk 0:02:59.3]} 4... cxd4 {[%clk 0:02:57]} 5. exd4 {[%clk 0:03:00.2]}
5... d5 {[%clk 0:02:57]} 6. h3 {[%clk 0:02:59.6]} 6... Nc6 {[%clk 0:02:56.5]} 7.
Be2 {[%clk 0:02:56.8]} 7... Nf6 {[%clk 0:02:56.9]} 8. O-O {[%clk 0:02:57.2]}
8... O-O {[%clk 0:02:57.3]} 9. Bf4 {[%clk 0:02:57.1]} 9... Ne4 {[%clk
0:02:56.8]} 10. c3 {[%clk 0:02:54.5]} 10... Bf5 {[%clk 0:02:56.2]} 11. a4 {[%clk
0:02:49.7]} 11... Rc8 {[%clk 0:02:50.9]} 12. Na3 {[%clk 0:02:46.2]} 12... h6
{[%clk 0:02:44.7]} 13. Rc1 {[%clk 0:02:33.6]} 13... g5 {[%clk 0:02:44.6]} 14.
Bh2 {[%clk 0:02:30.8]} 14... Qd7 {[%clk 0:02:43.3]} 15. b4 {[%clk 0:02:17.5]}
15... e6 {[%clk 0:02:30]} 16. a5 {[%clk 0:02:09.7]} 16... a6 {[%clk 0:02:28.3]}
17. Nd2 {[%clk 0:01:58.1]} 17... Ne7 {[%clk 0:02:22]} 18. Nab1 {[%clk
0:01:54.1]} 18... Ng6 {[%clk 0:02:09.3]} 19. Nb3 {[%clk 0:01:51.9]} 19... Nf4
{[%clk 0:02:05.2]} 20. Nc5 {[%clk 0:01:46.3]} 20... Nxc5 {[%clk 0:02:03.5]} 21.
bxc5 {[%clk 0:01:41.6]} 21... e5 {[%clk 0:02:00.4]} 22. Na3 {[%clk 0:01:15.9]}
22... Rfe8 {[%clk 0:01:47]} 23. Bf3 {[%clk 0:01:03.6]} 23... e4 {[%clk 0:01:38]}
24. Be2 {[%clk 0:00:54.4]} 24... Re6 {[%clk 0:00:51.5]} 25. Nc2 {[%clk
0:00:50.8]} 25... Rg6 {[%clk 0:00:44.6]} 26. Ne3 {[%clk 0:00:47.3]} 26... Bxh3
{[%clk 0:00:45.1]} 27. gxh3 {[%clk 0:00:45]} 27... Qxh3 {[%clk 0:00:45.1]} 28.
Bg4 {[%clk 0:00:43]} 28... Qh4 {[%clk 0:00:41]} 29. Bxc8 {[%clk 0:00:38.4]}
29... h5 {[%clk 0:00:30.7]} 30. Bg3 {[%clk 0:00:12.8]} 30... Nh3+ {[%clk
0:00:30.5]} 31. Bxh3 {[%clk 0:00:12]} 31... Qxh3 {[%clk 0:00:30.7]} 32. Bh2
{[%clk 0:00:08.8]} 32... f5 {[%clk 0:00:29.7]} 33. Kh1 {[%clk 0:00:09.3]} 33...
f4 {[%clk 0:00:29.6]} 34. Nxd5 {[%clk 0:00:09.1]} 34... f3 {[%clk 0:00:20.7]}
35. Rg1 {[%clk 0:00:08.4]} 35... Kh7 {[%clk 0:00:20.1]} 36. Ne3 {[%clk
0:00:08.2]} 36... g4 {[%clk 0:00:19.3]} 37. Rg3 {[%clk 0:00:08.8]} 37... Qh4
{[%clk 0:00:18.5]} 38. Qg1 {[%clk 0:00:08.9]} 38... Bh6 {[%clk 0:00:18.1]} 39.
Re1 {[%clk 0:00:08.5]} 39... Qf6 {[%clk 0:00:16.9]} 40. d5 {[%clk 0:00:05.9]}
40... Qxc3 {[%clk 0:00:15.8]} 41. d6 {[%clk 0:00:06.1]} 41... Qxc5 {[%clk
0:00:12.4]} 42. d7 {[%clk 0:00:06.4]} 42... Qe7 {[%clk 0:00:12.6]} 43. Rd1
{[%clk 0:00:06.5]} 43... Rg8 {[%clk 0:00:11.9]} 44. Nf5 {[%clk 0:00:06.7]} 44...
Qf6 {[%clk 0:00:08.6]} 45. Nxh6 {[%clk 0:00:07.6]} 45... Kxh6 {[%clk 0:00:08.6]}
46. Qe1 {[%clk 0:00:07.7]} 46... Rd8 {[%clk 0:00:07.6]} 47. Qxe4 {[%clk
0:00:07.8]} 47... h4 {[%clk 0:00:07.6]} 48. Qe3+ {[%clk 0:00:07.8]} 48... Kh5
{[%clk 0:00:07.3]} 49. Rgg1 {[%clk 0:00:08.1]} 49... g3 {[%clk 0:00:06.8]} 50.
Rd5+ {[%clk 0:00:08.3]} 50... Kg4 {[%clk 0:00:06.4]} 51. Bxg3 {[%clk 0:00:06.5]}
51... hxg3 {[%clk 0:00:05.2]} 52. Rxg3+ {[%clk 0:00:07.4]} 52... Kh4 {[%clk
0:00:05.3]} 53. Qe4+ {[%clk 0:00:08]} 1-0

[Event "Late-Titled-Tuesday-Blitz-September-26-2023"]
[Site "Chess.com"]
[Date "2023.09.26"]
[Round "8"]
[White "azikom"]
[Black "Verony64"]
[Result "1-0"]
[WhiteElo "2616"]
[BlackElo "2274"]
[TimeControl "180+1"]
[EndTime "15:25:54 PDT"]
[Termination "azikom won by checkmate"]

1. Nf3 {[%clk 0:02:59.3]} 1... d6 {[%clk 0:02:59.1]} 2. c4 {[%clk 0:02:58.6]}
2... e5 {[%clk 0:02:59.2]} 3. Nc3 {[%clk 0:02:58.6]} 3... f5 {[%clk 0:02:59.8]}
4. d4 {[%clk 0:02:58.5]} 4... e4 {[%clk 0:02:58.8]} 5. Nd2 {[%clk 0:02:58.5]}
5... Nf6 {[%clk 0:02:59.3]} 6. e3 {[%clk 0:02:59.1]} 6... Be7 {[%clk 0:02:59.2]}
7. b4 {[%clk 0:02:58.9]} 7... O-O {[%clk 0:02:59.6]} 8. Be2 {[%clk 0:02:58.8]}
8... c6 {[%clk 0:03:00.2]} 9. a4 {[%clk 0:02:53.9]} 9... Na6 {[%clk 0:03:00.4]}
10. b5 {[%clk 0:02:53.5]} 10... Nc7 {[%clk 0:02:54.5]} 11. Nb3 {[%clk
0:02:50.4]} 11... d5 {[%clk 0:02:46.9]} 12. Ba3 {[%clk 0:02:48.5]} 12... Bxa3
{[%clk 0:02:39.7]} 13. Rxa3 {[%clk 0:02:48.2]} 13... Qe7 {[%clk 0:02:39.9]} 14.
Qc1 {[%clk 0:02:34.9]} 14... f4 {[%clk 0:02:26.4]} 15. exf4 {[%clk 0:02:30.8]}
15... e3 {[%clk 0:02:02.7]} 16. fxe3 {[%clk 0:02:21.6]} 16... Bg4 {[%clk
0:01:57.7]} 17. O-O {[%clk 0:01:58.7]} 17... Bxe2 {[%clk 0:01:51.9]} 18. Nxe2
{[%clk 0:01:58]} 18... Ng4 {[%clk 0:01:42.6]} 19. Nc5 {[%clk 0:01:43.1]} 19...
b6 {[%clk 0:01:21.7]} 20. h3 {[%clk 0:01:17]} 20... Nf6 {[%clk 0:01:07.2]} 21.
Nd3 {[%clk 0:01:02.9]} 21... dxc4 {[%clk 0:01:02.8]} 22. Ne5 {[%clk 0:00:57.4]}
22... cxb5 {[%clk 0:00:55.9]} 23. axb5 {[%clk 0:00:58.3]} 23... Kh8 {[%clk
0:00:50.6]} 24. Ra4 {[%clk 0:00:32.4]} 24... Nxb5 {[%clk 0:00:41.4]} 25. Rxc4
{[%clk 0:00:30.9]} 25... Rad8 {[%clk 0:00:25.2]} 26. Ng3 {[%clk 0:00:29.4]}
26... Nd5 {[%clk 0:00:20.3]} 27. Kh2 {[%clk 0:00:24.6]} 27... Nd6 {[%clk
0:00:16.5]} 28. Rc6 {[%clk 0:00:22.7]} 28... Qh4 {[%clk 0:00:14.3]} 29. Qd2
{[%clk 0:00:17.2]} 29... Qxg3+ {[%clk 0:00:12.5]} 30. Kxg3 {[%clk 0:00:17]}
30... Ne4+ {[%clk 0:00:13.1]} 31. Kh2 {[%clk 0:00:17.1]} 31... Nxd2 {[%clk
0:00:13.4]} 32. Ra1 {[%clk 0:00:16.3]} 32... a5 {[%clk 0:00:11.5]} 33. Ra2
{[%clk 0:00:14.7]} 33... Ne4 {[%clk 0:00:10.3]} 34. Ra3 {[%clk 0:00:14.4]} 34...
Rf6 {[%clk 0:00:06.8]} 35. Rc1 {[%clk 0:00:12.3]} 35... Rh6 {[%clk 0:00:05.6]}
36. Nf3 {[%clk 0:00:11.6]} 36... Nef6 {[%clk 0:00:05]} 37. Ne5 {[%clk
0:00:11.2]} 37... Rf8 {[%clk 0:00:03.8]} 38. Rb1 {[%clk 0:00:10.8]} 38... Rh5
{[%clk 0:00:03]} 39. Kg1 {[%clk 0:00:10]} 39... g5 {[%clk 0:00:03.2]} 40. fxg5
{[%clk 0:00:09.3]} 40... Rxg5 {[%clk 0:00:03.5]} 41. Nf3 {[%clk 0:00:08.9]}
41... Rg7 {[%clk 0:00:02.8]} 42. Rb5 {[%clk 0:00:08.1]} 42... Ne7 {[%clk
0:00:01]} 43. Rxb6 {[%clk 0:00:07.1]} 43... Nfd5 {[%clk 0:00:01.9]} 44. Re6
{[%clk 0:00:06.6]} 44... Rxf3 {[%clk 0:00:01.6]} 45. Rxa5 {[%clk 0:00:06]} 45...
Rf8 {[%clk 0:00:01.8]} 46. Re5 {[%clk 0:00:05.4]} 46... Rfg8 {[%clk 0:00:02]}
47. g4 {[%clk 0:00:04.9]} 47... h6 {[%clk 0:00:02.9]} 48. Raxd5 {[%clk
0:00:04.5]} 48... Kh7 {[%clk 0:00:03.4]} 49. Rd6 {[%clk 0:00:03.3]} 49... Ng6
{[%clk 0:00:04.1]} 50. Ree6 {[%clk 0:00:02.8]} 50... Nh4 {[%clk 0:00:05]} 51.
Rxh6# {[%clk 0:00:02.7]} 1-0

[Event "Late-Titled-Tuesday-Blitz-September-26-2023"]
[Site "Chess.com"]
[Date "2023.09.26"]
[Round "8"]
[White "topin8"]
[Black "TheMagician"]
[Result "1/2-1/2"]
[WhiteElo "2418"]
[BlackElo "2265"]
[TimeControl "180+1"]
[EndTime "15:26:01 PDT"]
[Termination "Game drawn - insufficient material"]

1. e4 {[%clk 0:03:00.9]} 1... e5 {[%clk 0:02:57.2]} 2. Nf3 {[%clk 0:03:01.2]}
2... Nc6 {[%clk 0:02:57.1]} 3. Bb5 {[%clk 0:03:01.6]} 3... Nf6 {[%clk 0:02:56]}
4. O-O {[%clk 0:03:00]} 4... Nxe4 {[%clk 0:02:48.2]} 5. d4 {[%clk 0:02:59.9]}
5... d5 {[%clk 0:02:42.9]} 6. Nxe5 {[%clk 0:02:56.9]} 6... Bd7 {[%clk
0:02:40.8]} 7. Nxd7 {[%clk 0:02:54.6]} 7... Qxd7 {[%clk 0:02:40.1]} 8. f3 {[%clk
0:02:44]} 8... Nd6 {[%clk 0:02:37.4]} 9. Re1+ {[%clk 0:02:35.2]} 9... Be7 {[%clk
0:02:29.7]} 10. Bxc6 {[%clk 0:02:24.5]} 10... Qxc6 {[%clk 0:02:26.9]} 11. Nc3
{[%clk 0:02:14.3]} 11... Rd8 {[%clk 0:02:22.1]} 12. Re5 {[%clk 0:01:50.3]} 12...
Nc8 {[%clk 0:02:20.8]} 13. Ne2 {[%clk 0:00:37.6]} 13... O-O {[%clk 0:02:11.4]}
14. Nf4 {[%clk 0:00:31.9]} 14... Bd6 {[%clk 0:01:40.7]} 15. Re2 {[%clk
0:00:31.4]} 15... Qd7 {[%clk 0:01:28]} 16. Qd3 {[%clk 0:00:24.4]} 16... c6
{[%clk 0:01:24.3]} 17. Bd2 {[%clk 0:00:22.9]} 17... Rfe8 {[%clk 0:01:23.2]} 18.
Rae1 {[%clk 0:00:22.8]} 18... Rxe2 {[%clk 0:01:22.7]} 19. Rxe2 {[%clk
0:00:22.9]} 19... g6 {[%clk 0:01:14.9]} 20. Kf2 {[%clk 0:00:21.6]} 20... Re8
{[%clk 0:01:13.7]} 21. Rxe8+ {[%clk 0:00:19.8]} 21... Qxe8 {[%clk 0:01:13.8]}
22. Qe2 {[%clk 0:00:20.7]} 22... Qxe2+ {[%clk 0:01:12.8]} 23. Kxe2 {[%clk
0:00:20.3]} 23... Kf8 {[%clk 0:01:09.3]} 24. g3 {[%clk 0:00:20]} 24... Ke7
{[%clk 0:01:09.3]} 25. b3 {[%clk 0:00:20.4]} 25... Kd7 {[%clk 0:01:09.4]} 26. c4
{[%clk 0:00:20.7]} 26... Ne7 {[%clk 0:01:06.1]} 27. Kd3 {[%clk 0:00:21]} 27...
a6 {[%clk 0:01:01.4]} 28. Ne2 {[%clk 0:00:21.2]} 28... Ke6 {[%clk 0:00:58.6]}
29. a4 {[%clk 0:00:18.2]} 29... h5 {[%clk 0:00:57.7]} 30. Nf4+ {[%clk 0:00:18]}
30... Bxf4 {[%clk 0:00:57.2]} 31. Bxf4 {[%clk 0:00:18.4]} 31... f6 {[%clk
0:00:48.9]} 32. h3 {[%clk 0:00:17.8]} 32... g5 {[%clk 0:00:48.2]} 33. Bd2 {[%clk
0:00:15.5]} 33... Nf5 {[%clk 0:00:47.9]} 34. Be1 {[%clk 0:00:15.8]} 34... Nd6
{[%clk 0:00:43.6]} 35. g4 {[%clk 0:00:14.5]} 35... hxg4 {[%clk 0:00:42]} 36.
hxg4 {[%clk 0:00:14.4]} 36... dxc4+ {[%clk 0:00:41.2]} 37. bxc4 {[%clk
0:00:14.3]} 37... b5 {[%clk 0:00:41.4]} 38. axb5 {[%clk 0:00:12.5]} 38... axb5
{[%clk 0:00:39.1]} 39. cxb5 {[%clk 0:00:12.8]} 39... cxb5 {[%clk 0:00:36.8]} 40.
Bd2 {[%clk 0:00:13.1]} 40... Kd5 {[%clk 0:00:35.5]} 41. f4 {[%clk 0:00:13.5]}
41... gxf4 {[%clk 0:00:34.6]} 42. Bxf4 {[%clk 0:00:13.9]} 42... Ne4 {[%clk
0:00:34.5]} 43. Be3 {[%clk 0:00:13.1]} 43... b4 {[%clk 0:00:34.2]} 44. Bg1
{[%clk 0:00:08.7]} 44... b3 {[%clk 0:00:31]} 45. Be3 {[%clk 0:00:08.9]} 45...
Nd6 {[%clk 0:00:24.4]} 46. Kc3 {[%clk 0:00:08.7]} 46... Nb5+ {[%clk 0:00:24.3]}
47. Kxb3 {[%clk 0:00:09.1]} 47... Nxd4+ {[%clk 0:00:24.4]} 48. Kc3 {[%clk
0:00:09.6]} 48... Nf3 {[%clk 0:00:24.5]} 49. Kd3 {[%clk 0:00:09.7]} 49... Ne5+
{[%clk 0:00:24.7]} 50. Ke2 {[%clk 0:00:09.5]} 50... Nxg4 {[%clk 0:00:25.3]} 51.
Bc1 {[%clk 0:00:04]} 51... Ke4 {[%clk 0:00:25.5]} 52. Bd2 {[%clk 0:00:04]} 52...
f5 {[%clk 0:00:25.8]} 53. Bg5 {[%clk 0:00:04.5]} 53... Ne5 {[%clk 0:00:25.2]}
54. Kf2 {[%clk 0:00:04.8]} 54... Nd3+ {[%clk 0:00:24.9]} 55. Kg3 {[%clk
0:00:04.9]} 55... Nc5 {[%clk 0:00:24.3]} 56. Kf2 {[%clk 0:00:05.2]} 56... Ne6
{[%clk 0:00:25.2]} 57. Bh6 {[%clk 0:00:05]} 57... Nf4 {[%clk 0:00:22.1]} 58. Kg3
{[%clk 0:00:04.6]} 58... Ne2+ {[%clk 0:00:21.9]} 59. Kf2 {[%clk 0:00:05]} 59...
Nc3 {[%clk 0:00:22]} 60. Kg3 {[%clk 0:00:05]} 60... Ke5 {[%clk 0:00:21.4]} 61.
Bg7+ {[%clk 0:00:04.8]} 61... Ke4 {[%clk 0:00:21.9]} 62. Bxc3 {[%clk 0:00:05.7]}
62... f4+ {[%clk 0:00:22.4]} 63. Kf2 {[%clk 0:00:06.1]} 63... f3 {[%clk
0:00:23.3]} 64. Bd2 {[%clk 0:00:06.4]} 64... Kd3 {[%clk 0:00:23.5]} 65. Kxf3
{[%clk 0:00:07.1]} 1/2-1/2